Workbook

Sheet Page1
A1: Утверждаю «Исполнитель» ____________________ / ________ / (подпись, М.П.) | H1: Согласовано «Заказчик» _____________________ /__ / (подпись, М.П.)
A2: ЦИКЛИЧНОЕ ДВУХНЕДЕЛЬНОЕ МЕНЮ ДЛЯ ОРГАНИЗАЦИИ ПИТАНИЯ ДЕТЕЙ В ВОЗРАСТЕ ОТ 3 ДО 7 ЛЕТ, ПОСЕЩАЮЩИХ ДОШКОЛЬНЫЕ ОБРАЗОВАТЕЛЬНЫЕ УЧРЕЖДЕНИЯ И ДОШКОЛЬНЫЕ ГРУППЫ ОБРАЗОВАТЕЛЬНЫХ УЧРЕЖДЕНИЙ ТУКАЕВСКОГО МУНИЦИПАЛЬНОГО РАЙОНА РТ НА 1 полугодие 2024 г. (10,5 час)
B3: 1 день. Пн
A4: № ТК | B4: Прием пищи, наименование блюда | C4: Масса порции | D4: Пищевые вещества | G4: Энергетическая ценность, ккал | H4: Витамины | K4: Минеральные вещества
D5: Белки, г | E5: Жиры, г | F5: Углеводы, г | H5: В1, мг | I5: В2, мг | J5: С, мг | K5: Са, мг | L5: Fе, мг
B6: Завтрак
B7: КАША МАННАЯ МОЛОЧНАЯ ЖИДКАЯ С МАСЛОМ | C7: 200/5 | D7: 7.23 | E7: 8.35 | F7: 33.44 | G7: 297.82 | H7: 0.04 | I7: 0.20 | J7: 0.90 | K7: 182.00 | L7: 0.40
B8: БУТЕРБРОД С МАСЛОМ | C8: 40/5 | D8: 3.20 | E8: 4.03 | F8: 19.39 | G8: 127.40 | H8: 0.07 | I8: 0.08 | J8: 0.00 | K8: 10.40 | L8: 0.81
B9: КАКАО С МОЛОКОМ | C9: 180 | D9: 3.67 | E9: 3.19 | F9: 15.82 | G9: 107.00 | H9: 0.05 | I9: 0.17 | J9: 1.43 | K9: 137.00 | L9: 0.43
B10: Итого за прием пищи: | D10: =SUM(D7:D9) -> 14.10 | E10: 15.57 | F10: 68.65 | G10: 532.22 | H10: 0.16 | I10: 0.45 | J10: 2.33 | K10: 329.40 | L10: 1.64
B11: II Завтрак
B12: СОК ФРУКТОВЫЙ | C12: 200 | D12: 1.00 | E12: 0.00 | F12: 20.20 | G12: 85.33 | H12: 0.03 | I12: 0.03 | J12: 4.00 | K12: 14.00 | L12: 2.80
B13: ПЕЧЕНЬЕ | C13: 20 | D13: 1.50 | E13: 2.36 | F13: 14.88 | G13: 89.76 | H13: 0.00 | I13: 0.00 | J13: 0.00 | K13: 5.44 | L13: 0.34
B14: Итого за прием пищи: | D14: =SUM(D12:D13) -> 2.50 | E14: =SUM(E12:E13) -> 2.36 | F14: 35.08 | G14: 175.09 | H14: 0.03 | I14: 0.03 | J14: 4.00 | K14: 19.44 | L14: 3.14
B15: Обед
B16: САЛАТ ВИТАМИННЫЙ | C16: 60 | D16: 0.50 | E16: 3.66 | F16: 3.16 | G16: 47.64 | H16: 0.03 | I16: 0.02 | J16: 5.27 | K16: 11.64 | L16: 0.63
B17: СУП КАРТОФЕЛЬНЫЙ С КРУПОЙ (ГРЕЧКА) | C17: 200 | D17: 1.58 | E17: 2.19 | F17: 11.66 | G17: 72.60 | H17: 0.08 | I17: 0.05 | J17: 6.60 | K17: 18.44 | L17: 0.71
B18: МАКАРОННЫЕ ИЗДЕЛИЯ ОТВАРНЫЕ СО СМЕТАННЫМ СОУСОМ | C18: 120/30 | D18: 30.54 | E18: 4.99 | F18: 23.56 | G18: 159.03 | H18: 0.06 | I18: 0.03 | J18: 0.01 | K18: 12.19 | L18: 0.97
B19: КОТЛЕТЫ ГОВЯЖЬИ | C19: 70 | D19: 10.89 | E19: 8.09 | F19: 10.99 | G19: 161.13 | H19: 0.07 | I19: 0.11 | J19: 0.11 | K19: 30.63 | L19: 1.05
B20: ХЛЕБ ПШЕНИЧНЫЙ | C20: 50 | D20: 3.95 | E20: 0.50 | F20: 24.15 | G20: 118.00 | H20: 0.08 | I20: 0.03 | J20: 0.00 | K20: 11.50 | L20: 1.00
B21: КОМПОТ ИЗ СМЕСИ СУХОФРУКТОВ | C21: 180 | D21: 0.32 | E21: 0.04 | F21: 21.38 | G21: 87.00 | H21: 0.01 | I21: 0.26 | J21: 1.55 | K21: 14.50 | L21: 0.27
B22: Итого за прием пищи: | D22: =SUM(D16:D21) -> 47.78 | E22: =SUM(E16:E21) -> 19.47 | F22: 94.90 | G22: 645.40 | H22: 0.33 | I22: 0.50 | J22: 13.54 | K22: 98.90 | L22: 4.63
B23: Уплотненный полдник
B24: КАША ЯЧНЕВАЯ МОЛОЧНАЯ С МАСЛОМ | C24: 200/5 | D24: 8.04 | E24: 8.56 | F24: 37.71 | G24: 319.79 | H24: 0.05 | I24: 0.00 | J24: 0.00 | K24: 266.00 | L24: 0.40
B25: ОЛАДЬИ С ПОВИДЛОМ | C25: 60/5 | D25: 4.56 | E25: 4.06 | F25: 27.75 | G25: 166.00 | H25: 0.09 | I25: 0.08 | J25: 0.24 | K25: 51.10 | L25: 0.85
B26: ЧАЙ С САХАРОМ | C26: 180/10 | D26: 0.06 | E26: 0.02 | F26: 9.99 | G26: 40.00 | H26: 0.00 | I26: 0.00 | J26: 0.03 | K26: 10.00 | L26: 0.28
B27: СВЕЖИЕ ФРУКТЫ | C27: 100 | D27: 0.40 | E27: 0.40 | F27: 9.80 | G27: 44.00 | H27: 0.02 | I27: 0.30 | J27: 10.00 | K27: 16.00 | L27: 2.20
B28: Итого за прием пищи: | D28: =SUM(D24:D27) -> 13.06 | E28: =SUM(E24:E27) -> 13.04 | F28: 85.25 | G28: 569.79 | H28: 0.16 | I28: 0.38 | J28: 10.27 | K28: 343.10 | L28: 3.73
B29: Всего за день: | D29: =D10+D14+D22+D28 -> 77.4 | E29: =E10+E14+E22+E28 -> 50.4 | F29: 283.9 | G29: 1922.5 | H29: 0.7 | I29: 1.4 | J29: 30.1 | K29: 790.8 | L29: 13.1
B30: 2 день. Вт
A31: № ТК | B31: Прием пищи, наименование блюда | C31: Масса порции | D31: Пищевые вещества | G31: Энергетическая ценность, ккал | H31: Витамины | K31: Минеральные вещества
D32: Белки, г | E32: Жиры, г | F32: Углеводы, г | H32: В1, мг | I32: В2, мг | J32: С, мг | K32: Са, мг | L32: Fе, мг
B33: Завтрак
B34: КАША ГРЕЧНЕВАЯ МОЛОЧНАЯ С МАСЛОМ | C34: 200/5 | D34: 8.89 | E34: 8.97 | F34: 39.54 | G34: 339.21 | H34: 0.10 | I34: 0.20 | J34: 1.01 | K34: 198.40 | L34: 0.72
B35: БУТЕРБРОД С МАСЛОМ И СЫРОМ | C35: 25/5/10 | D35: 6.38 | E35: 11.25 | F35: 13.57 | G35: 184.90 | H35: 0.11 | I35: 0.09 | J35: 0.30 | K35: 231.20 | L35: 0.82
B36: ЧАЙ С САХАРОМ | C36: 180/10 | D36: 0.06 | E36: 0.02 | F36: 9.99 | G36: 40.00 | H36: 0.00 | I36: 0.00 | J36: 0.03 | K36: 10.00 | L36: 0.28
B37: Итого за прием пищи: | D37: =SUM(D34:D36) -> 15.33 | E37: 20.24 | F37: 63.10 | G37: 564.11 | H37: 0.21 | I37: 0.29 | J37: 1.34 | K37: 439.60 | L37: 1.82
B38: II Завтрак
B39: ЙОГУРТ ПИТЬЕВОЙ | C39: 95 | D39: 2.50 | E39: 0.10 | F39: 16.00 | G39: 75.00 | H39: 0.04 | I39: 0.16 | J39: 0.67 | K39: 114.00 | L39: 0.10
B40: Итого за прием пищи: | D40: =SUM(D39) -> 2.50 | E40: =SUM(E39) -> 0.10 | F40: 16.00 | G40: 75.00 | H40: 0.04 | I40: 0.16 | J40: 0.67 | K40: 114.00 | L40: 0.10
B41: Обед
B42: САЛАТ ИЗ МОРКОВИ С ЯБЛОКОМ | C42: 60 | D42: 0.52 | E42: 3.11 | F42: 4.72 | G42: 49.13 | H42: 0.03 | I42: 0.03 | J42: 4.17 | K42: 12.71 | L42: 0.41
B43: БОРЩ С КАПУСТОЙ И КАРТОФЕЛЕМ | C43: 200 | D43: 1.29 | E43: 3.87 | F43: 8.74 | G43: 135.00 | H43: 0.02 | I43: 0.03 | J43: 8.43 | K43: 37.74 | L43: 0.86
B44: ПТИЦА ТУШЕНАЯ С ОВОЩАМИ | C44: 190 | D44: 10.98 | E44: 6.33 | F44: 18.66 | G44: 175.78 | H44: 0.22 | I44: 0.13 | J44: 9.28 | K44: 39.79 | L44: 1.76
B45: ХЛЕБ ПШЕНИЧНЫЙ | C45: 50 | D45: 3.95 | E45: 0.50 | F45: 24.15 | G45: 118.00 | H45: 0.08 | I45: 0.03 | J45: 0.00 | K45: 11.50 | L45: 1.00
B46: КОМПОТ ИЗ СМЕСИ СУХОФРУКТОВ | C46: 180 | D46: 0.32 | E46: 0.04 | F46: 21.38 | G46: 87.00 | H46: 0.01 | I46: 0.26 | J46: 1.55 | K46: 14.50 | L46: 0.27
B47: Итого за прием пищи: | D47: =SUM(D42:D46) -> 17.06 | E47: =SUM(E42:E46) -> 13.85 | F47: 77.65 | G47: 564.91 | H47: 0.36 | I47: 0.48 | J47: 23.43 | K47: 116.24 | L47: 4.30
B48: Уплотненный полдник
B49: СУП МОЛОЧНЫЙ С МАКАРОННЫМИ ИЗДЕЛИЯМИ | C49: 200 | D49: 6.05 | E49: 5.60 | F49: 18.25 | G49: 147.60 | H49: 0.09 | I49: 0.22 | J49: 0.91 | K49: 161.62 | L49: 0.53
B50: ХЛЕБ ПШЕНИЧНЫЙ | C50: 40 | D50: 3.16 | E50: 0.40 | F50: 19.32 | G50: 94.40 | H50: 0.07 | I50: 0.02 | J50: 0.00 | K50: 9.21 | L50: 0.80
B51: ЧАЙ С КУРАГОЙ | C51: 180/10/10 | D51: 0.12 | E51: 0.02 | F51: 10.20 | G51: 41.00 | H51: 0.00 | I51: 0.00 | J51: 2.83 | K51: 12.80 | L51: 0.32
B52: БУЛОЧКА ДОМАШНЯЯ | C52: 50 | D52: 3.50 | E52: 5.58 | F52: 23.17 | G52: 157.50 | H52: 0.04 | I52: 0.00 | J52: 0.00 | K52: 8.08 | L52: 0.38
B53: СВЕЖИЕ ФРУКТЫ | C53: 100 | D53: 0.40 | E53: 0.40 | F53: 9.80 | G53: 44.00 | H53: 0.02 | I53: 0.30 | J53: 10.00 | K53: 16.00 | L53: 2.20
B54: Итого за прием пищи: | D54: =SUM(D49:D53) -> 13.23 | E54: 12.00 | F54: 80.74 | G54: 484.50 | H54: 0.22 | I54: 0.54 | J54: 13.74 | K54: 207.71 | L54: 4.23
B55: Всего за день: | D55: =D37+D40+D47+D54 -> 48.12 | E55: =E37+E40+E47+E54 -> 46.19 | F55: =F37+F40+F47+F54 -> 237.49 | G55: 1688.52 | H55: 0.83 | I55: 1.47 | J55: 39.18 | K55: 877.55 | L55: =L37+L40+L47+L54 -> 10.45
B56: 3 день. Ср
A57: № ТК | B57: Прием пищи, наименование блюда | C57: Масса порции | D57: Пищевые вещества | G57: Энергетическая ценность, ккал | H57: Витамины | K57: Минеральные вещества
D58: Белки, г | E58: Жиры, г | F58: Углеводы, г | H58: В1, мг | I58: В2, мг | J58: С, мг | K58: Са, мг | L58: Fе, мг
B59: Завтрак
B60: КАША МОЛОЧНАЯ "ДРУЖБА" С МАСЛОМ | C60: 200/5 | D60: 7.46 | E60: 8.86 | F60: 36.71 | G60: 316.27 | H60: 0.12 | I60: 0.27 | J60: 5.92 | K60: 96.50 | L60: 1.10
B61: БУТЕРБРОД С МАСЛОМ | C61: 40/5 | D61: 3.20 | E61: 4.03 | F61: 19.39 | G61: 127.40 | H61: 0.07 | I61: 0.08 | J61: 0.00 | K61: 10.40 | L61: 0.81
B62: ЧАЙ С САХАРОМ | C62: 180/10 | D62: 0.06 | E62: 0.02 | F62: 9.99 | G62: 40.00 | H62: 0.00 | I62: 0.00 | J62: 0.03 | K62: 10.00 | L62: 0.28
B63: Итого за прием пищи: | D63: =SUM(D60:D62) -> 10.72 | E63: 12.91 | F63: 66.09 | G63: 483.67 | H63: 0.19 | I63: 0.35 | J63: 5.95 | K63: 116.90 | L63: 2.19
B64: II Завтрак
B65: МОЛОКО КИПЯЧЕНОЕ | C65: 150 | D65: 5.40 | E65: 3.96 | F65: 7.60 | G65: 84.35 | H65: 0.01 | I65: 0.01 | J65: 2.06 | K65: 16.50 | L65: 0.90
B66: Итого за прием пищи: | D66: =SUM(D65) -> 5.40 | E66: =SUM(E65) -> 3.96 | F66: 7.60 | G66: 84.35 | H66: 0.01 | I66: 0.01 | J66: 2.06 | K66: 16.50 | L66: 0.90
B67: Обед
B68: ВИНЕГРЕТ ОВОЩНОЙ | C68: 60 | D68: 0.96 | E68: 3.72 | F68: 3.96 | G68: 52.80 | H68: 0.02 | I68: 0.00 | J68: 3.72 | K68: 13.80 | L68: 0.47
B69: СУП КАРТОФЕЛЬНЫЙ С БОБОВЫМИ | C69: 200 | D69: 4.39 | E69: 4.22 | F69: 13.06 | G69: 107.80 | H69: 0.18 | I69: 0.06 | J69: 4.65 | K69: 30.46 | L69: 1.62
B70: КАША ГРЕЧНЕВАЯ РАССЫПЧАТАЯ С СОУСОМ | C70: 150/20 | D70: 6.66 | E70: 5.50 | F70: 40.24 | G70: 237.16 | H70: 0.15 | I70: 0.20 | J70: 0.33 | K70: 29.88 | L70: 3.49
B71: КОТЛЕТЫ ГОВЯЖЬИ | C71: 70 | D71: 10.89 | E71: 8.09 | F71: 10.99 | G71: 161.13 | H71: 0.07 | I71: 0.11 | J71: 0.11 | K71: 30.63 | L71: 1.05
B72: ХЛЕБ ПШЕНИЧНЫЙ | C72: 50 | D72: 3.95 | E72: 0.50 | F72: 24.15 | G72: 118.00 | H72: 0.08 | I72: 0.03 | J72: 0.00 | K72: 11.50 | L72: 1.00
B73: КОМПОТ ИЗ СМЕСИ СУХОФРУКТОВ | C73: 180 | D73: 0.32 | E73: 0.04 | F73: 21.38 | G73: 87.00 | H73: 0.01 | I73: 0.26 | J73: 1.55 | K73: 14.50 | L73: 0.27
B74: Итого за прием пищи: | D74: =SUM(D68:D73) -> 27.17 | E74: =SUM(E68:E73) -> 22.07 | F74: 113.78 | G74: 763.89 | H74: 0.51 | I74: 0.66 | J74: 10.36 | K74: 130.77 | L74: 7.90
B75: Уплотненный полдник
B76: ЗАПЕКАНКА ИЗ ТВОРОГА С МОРКОВЬЮ С СОУСОМ МОЛОЧНЫМ | C76: 100/30 | D76: 12.24 | E76: 11.65 | F76: 27.76 | G76: 264.45 | H76: 0.07 | I76: 0.22 | J76: 0.81 | K76: 132.41 | L76: 0.74
B77: ЧАЙ С САХАРОМ | C77: 180/10 | D77: 0.06 | E77: 0.02 | F77: 9.99 | G77: 40.00 | H77: 0.00 | I77: 0.00 | J77: 0.03 | K77: 10.00 | L77: 0.28
B78: ВАФЛИ | C78: 20 | D78: 0.64 | E78: 0.56 | F78: 16.02 | G78: 71.68 | H78: 0.01 | I78: 0.01 | J78: 0.00 | K78: 6.80 | L78: 0.43
B79: Итого за прием пищи: | D79: =SUM(D76:D78) -> 12.94 | E79: =SUM(E76:E78) -> 12.23 | F79: =SUM(F76:F78) -> 53.77 | G79: =SUM(G76:G78) -> 376.13 | H79: 0.08 | I79: 0.23 | J79: 0.84 | K79: 149.21 | L79: 1.45
B80: Всего за день: | D80: =D63+D66+D74+D79 -> 56.23 | E80: =E63+E66+E74+E79 -> 51.17 | F80: 241.24 | G80: 1708.04 | H80: 0.79 | I80: 1.25 | J80: 19.21 | K80: 413.38 | L80: 12.44
B81: 4 день. Чт
A82: № ТК | B82: Прием пищи, наименование блюда | C82: Масса порции | D82: Пищевые вещества | G82: Энергетическая ценность, ккал | H82: Витамины | K82: Минеральные вещества
D83: Белки, г | E83: Жиры, г | F83: Углеводы, г | H83: В1, мг | I83: В2, мг | J83: С, мг | K83: Са, мг | L83: Fе, мг
B84: Завтрак
B85: КАША ПШЕНИЧНАЯ МОЛОЧНАЯ С МАСЛОМ | C85: 200/5 | D85: 8.64 | E85: 8.56 | F85: 38.71 | G85: 326.19 | H85: 0.10 | I85: 0.20 | J85: 0.90 | K85: 186.00 | L85: 0.70
B86: БУТЕРБРОД С МАСЛОМ И СЫРОМ | C86: 25/5/10 | D86: 6.38 | E86: 11.25 | F86: 13.57 | G86: 184.90 | H86: 0.11 | I86: 0.09 | J86: 0.30 | K86: 231.20 | L86: 0.82
B87: КОФЕЙНЫЙ НАПИТОК С МОЛОКОМ | C87: 180 | D87: 2.52 | E87: 2.25 | F87: 12.24 | G87: 79.20 | H87: 0.03 | I87: 0.17 | J87: 0.63 | K87: 97.50 | L87: 0.11
B88: Итого за прием пищи: | D88: =SUM(D85:D87) -> 17.54 | E88: 22.06 | F88: 64.52 | G88: 590.29 | H88: 0.24 | I88: 0.46 | J88: 1.83 | K88: 514.70 | L88: 1.63
B89: II Завтрак
B90: КИСЛОМОЛОЧНЫЙ ПРОДУКТ | C90: 150 | D90: 4.35 | E90: 3.75 | F90: 6.30 | G90: 76.00 | H90: 0.03 | I90: 0.20 | J90: 0.45 | K90: 186.00 | L90: 15.00
B91: Итого за прием пищи: | D91: =SUM(D90) -> 4.35 | E91: =SUM(E90) -> 3.75 | F91: 6.30 | G91: 76.00 | H91: 0.03 | I91: 0.20 | J91: 0.45 | K91: 186.00 | L91: 15.00
B92: Обед
B93: САЛАТ ИЗ БЕЛОКОЧАННОЙ КАПУСТЫ | C93: 60 | D93: 0.85 | E93: 3.05 | F93: 5.41 | G93: 52.44 | H93: 0.02 | I93: 0.00 | J93: 19.47 | K93: 22.42 | L93: 0.31
B94: РАССОЛЬНИК ЛЕНИНГРАДСКИЙ | C94: 200 | D94: 2.34 | E94: 2.63 | F94: 10.24 | G94: 73.60 | H94: 0.07 | I94: 0.05 | J94: 5.50 | K94: 27.62 | L94: 0.63
B95: ПЛОВ ИЗ МЯСА ПТИЦЫ | C95: 210 | D95: 22.26 | E95: 7.73 | F95: 35.69 | G95: 301.00 | H95: 0.08 | I95: 0.08 | J95: 1.01 | K95: 20.70 | L95: 1.87
B96: ХЛЕБ ПШЕНИЧНЫЙ | C96: 50 | D96: 3.95 | E96: 0.50 | F96: 24.15 | G96: 118.00 | H96: 0.08 | I96: 0.03 | J96: 0.00 | K96: 11.50 | L96: 1.00
B97: КОМПОТ ИЗ СМЕСИ СУХОФРУКТОВ | C97: 180 | D97: 0.32 | E97: 0.04 | F97: 21.38 | G97: 87.00 | H97: 0.01 | I97: 0.26 | J97: 1.55 | K97: 14.50 | L97: 0.27
B98: Итого за прием пищи: | D98: =SUM(D93:D97) -> 29.72 | E98: =SUM(E93:E97) -> 13.95 | F98: 96.87 | G98: 632.04 | H98: 0.26 | I98: 0.42 | J98: 27.53 | K98: 96.74 | L98: 4.08
B99: Уплотненный полдник
B100: ОМЛЕТ НАТУРАЛЬНЫЙ ПАРОВОЙ | C100: 105 | D100: 9.29 | E100: 16.62 | F100: 1.86 | G100: 193.94 | H100: 0.06 | I100: 0.38 | J100: 0.19 | K100: 77.58 | L100: 1.90
B101: ЧАЙ С САХАРОМ | C101: 180/10 | D101: 0.06 | E101: 0.02 | F101: 9.99 | G101: 40.00 | H101: 0.00 | I101: 0.00 | J101: 0.03 | K101: 10.00 | L101: 0.28
B102: СВЕЖИЕ ФРУКТЫ | C102: 100 | D102: 0.40 | E102: 0.40 | F102: 9.80 | G102: 44.00 | H102: 0.02 | I102: 0.30 | J102: 10.00 | K102: 16.00 | L102: 2.20
B103: ПЕЧЕНЬЕ | C103: 20 | D103: 1.50 | E103: 2.36 | F103: 14.88 | G103: 89.76 | H103: 0.00 | I103: 0.00 | J103: 0.00 | K103: 5.44 | L103: 0.34
B104: ХЛЕБ ПШЕНИЧНЫЙ | C104: 40 | D104: 3.16 | E104: 0.40 | F104: 19.32 | G104: 94.40 | H104: 0.07 | I104: 0.02 | J104: 0.00 | K104: 9.21 | L104: 0.80
B105: Итого за прием пищи: | D105: =SUM(D100:D104) -> 14.41 | E105: =SUM(E100:E104) -> 19.80 | F105: 55.85 | G105: 462.10 | H105: 0.15 | I105: 0.70 | J105: 10.22 | K105: 118.23 | L105: 5.52
B106: Всего за день: | D106: =D88+D91+D98+D105 -> 66.02 | E106: 59.56 | F106: 223.54 | G106: 1760.43 | H106: 0.68 | I106: 1.78 | J106: 40.03 | K106: 915.67 | L106: 26.23
B107: 5 день. Пт
A108: № ТК | B108: Прием пищи, наименование блюда | C108: Масса порции | D108: Пищевые вещества | G108: Энергетическая ценность, ккал | H108: Витамины | K108: Минеральные вещества
D109: Белки, г | E109: Жиры, г | F109: Углеводы, г | H109: В1, мг | I109: В2, мг | J109: С, мг | K109: Са, мг | L109: Fе, мг
B110: Завтрак
B111: КАША ГЕРКУЛЕСОВАЯ МОЛОЧНАЯ С МАСЛОМ | C111: 200/5 | D111: 7.85 | E111: 9.96 | F111: 30.71 | G111: 303.71 | H111: 0.11 | I111: 0.20 | J111: 0.90 | K111: 191.00 | L111: 0.90
B112: БУТЕРБРОД С МАСЛОМ | C112: 40/5 | D112: 3.20 | E112: 4.03 | F112: 19.39 | G112: 127.40 | H112: 0.07 | I112: 0.08 | J112: 0.00 | K112: 10.40 | L112: 0.81
B113: ЧАЙ С КУРАГОЙ | C113: 180/10/10 | D113: 0.12 | E113: 0.20 | F113: 10.20 | G113: 41.00 | H113: 0.00 | I113: 0.00 | J113: 2.83 | K113: 12.80 | L113: 0.32
B114: Итого за прием пищи: | D114: =SUM(D111:D113) -> 11.17 | E114: =SUM(E111:E113) -> 14.19 | F114: 60.30 | G114: 472.11 | H114: 0.18 | I114: 0.28 | J114: 3.73 | K114: 214.20 | L114: =SUM(L111:L113) -> 2.03
B115: II Завтрак
B116: СВЕЖИЕ ФРУКТЫ (ГРУША) | C116: 100 | D116: 0.40 | E116: 0.30 | F116: 10.30 | G116: 46.00 | H116: 0.03 | I116: 0.03 | J116: 5.00 | K116: 19.00 | L116: 2.30
B117: ВАФЛИ | C117: 20 | D117: 0.64 | E117: 0.56 | F117: 16.02 | G117: 71.68 | H117: 0.01 | I117: 0.01 | J117: 0.00 | K117: 6.80 | L117: 0.43
B118: Итого за прием пищи: | D118: =SUM(D116) -> 0.40 | E118: =SUM(E116) -> 0.30 | F118: 10.30 | G118: 46.00 | H118: 0.03 | I118: 0.03 | J118: 5.00 | K118: 19.00 | L118: 2.30
B119: Обед
B120: САЛАТ ИЗ МОРКОВИ | C120: 60 | D120: 0.72 | E120: 3.60 | F120: 6.72 | G120: 62.40 | H120: 0.03 | I120: 0.00 | J120: 1.80 | K120: 14.40 | L120: 0.38
B121: ЩИ ИЗ СВЕЖЕЙ КАПУСТЫ С КАРТОФЕЛЕМ | C121: 200 | D121: 1.39 | E121: 3.91 | F121: 6.79 | G121: 67.80 | H121: 0.05 | I121: 0.04 | J121: 14.77 | K121: 34.66 | L121: 0.64
B122: ПЮРЕ КАРТОФЕЛЬНОЕ | C122: 150 | D122: 3.06 | E122: 4.80 | F122: 20.43 | G122: 137.18 | H122: 0.14 | I122: 0.11 | J122: 18.15 | K122: 36.98 | L122: 1.09
B123: КОТЛЕТЫ РЫБНЫЕ ЗАПЕЧЕННЫЕ | C123: 70 | D123: 9.36 | E123: 3.29 | F123: 5.93 | G123: 94.50 | H123: 0.06 | I123: 0.07 | J123: 0.30 | K123: 36.87 | L123: 0.53
B124: ХЛЕБ ПШЕНИЧНЫЙ | C124: 50 | D124: 3.95 | E124: 0.50 | F124: 24.15 | G124: 118.00 | H124: 0.08 | I124: 0.03 | J124: 0.00 | K124: 11.50 | L124: 1.00
B125: КОМПОТ ИЗ СМЕСИ СУХОФРУКТОВ | C125: 180 | D125: 0.32 | E125: 0.04 | F125: 21.38 | G125: 87.00 | H125: 0.01 | I125: 0.26 | J125: 1.55 | K125: 14.50 | L125: 0.27
B126: Итого за прием пищи: | D126: =SUM(D120:D125) -> 18.80 | E126: =SUM(E120:E125) -> 16.14 | F126: 85.40 | G126: 566.88 | H126: 0.37 | I126: 0.51 | J126: 36.57 | K126: 148.91 | L126: 3.91
B127: Уплотненный полдник
B128: КАША РИСОВАЯ МОЛОЧНАЯ С МАСЛОМ | C128: 200/5 | D128: 6.21 | E128: 15.24 | F128: 34.49 | G128: 237.37 | H128: 0.10 | I128: 0.22 | J128: 0.24 | K128: 138.40 | L128: 1.50
B129: ХЛЕБ ПШЕНИЧНЫЙ | C129: 40 | D129: 3.16 | E129: 0.40 | F129: 19.32 | G129: 94.40 | H129: 0.07 | I129: 0.02 | J129: 0.00 | K129: 9.21 | L129: 0.80
B130: ЧАЙ С ЛИМОНОМ | C130: 180/10/7 | D130: 0.12 | E130: 0.02 | F130: 10.20 | G130: 41.00 | H130: 0.00 | I130: 0.00 | J130: 2.83 | K130: 12.80 | L130: 0.32
B131: СВЕЖИЕ ФРУКТЫ | C131: 100 | D131: 0.40 | E131: 0.40 | F131: 9.80 | G131: 44.00 | H131: 0.02 | I131: 0.30 | J131: 10.00 | K131: 16.00 | L131: 2.20
B132: Итого за прием пищи: | D132: =SUM(D128:D131) -> 9.89 | E132: 16.06 | F132: 73.81 | G132: 416.77 | H132: 0.19 | I132: 0.54 | J132: 13.07 | K132: 176.41 | L132: 4.82
B133: Всего за день: | D133: =D114+D118+D126+D132 -> 40.26 | E133: =E114+E118+E126+E132 -> 46.69 | F133: =F114+F118+F126+F132 -> 229.81 | G133: 1501.76 | H133: 0.77 | I133: 1.36 | J133: 58.37 | K133: 558.52 | L133: 13.06
B134: 6 день. Пн
A135: № ТК | B135: Прием пищи, наименование блюда | C135: Масса порции | D135: Пищевые вещества | G135: Энергетическая ценность, ккал | H135: Витамины | K135: Минеральные вещества
D136: Белки, г | E136: Жиры, г | F136: Углеводы, г | H136: В1, мг | I136: В2, мг | J136: С, мг | K136: Са, мг | L136: Fе, мг
B137: Завтрак
B138: КАША ПШЕННАЯ МОЛОЧНАЯ С МАСЛОМ | C138: 200/5 | D138: 8.64 | E138: 9.36 | F138: 38.15 | G138: 331.39 | H138: 0.09 | I138: 0.20 | J138: 0.90 | K138: 9.00 | L138: 0.70
B139: БУТЕРБРОД С МАСЛОМ | C139: 40/5 | D139: 3.20 | E139: 4.03 | F139: 19.39 | G139: 127.40 | H139: 0.07 | I139: 0.08 | J139: 0.00 | K139: 10.40 | L139: 0.81
B140: ЧАЙ С САХАРОМ | C140: 180/10 | D140: 0.06 | E140: 0.02 | F140: 9.99 | G140: 40.00 | H140: 0.00 | I140: 0.00 | J140: 0.03 | K140: 10.00 | L140: 0.28
B141: Итого за прием пищи: | D141: =SUM(D138:D140) -> 11.90 | E141: =SUM(E138:E140) -> 13.41 | F141: 67.53 | G141: 498.79 | H141: 0.16 | I141: 0.28 | J141: 0.93 | K141: 29.40 | L141: =SUM(L138:L140) -> 1.79
B142: II Завтрак
B143: СОК ФРУКТОВЫЙ | C143: 200 | D143: 1.00 | E143: 0.00 | F143: 20.20 | G143: 85.33 | H143: 0.03 | I143: 0.03 | J143: 4.00 | K143: 14.00 | L143: 2.80
B144: ПЕЧЕНЬЕ | C144: 20 | D144: 1.50 | E144: 2.36 | F144: 14.88 | G144: 89.76 | H144: 0.00 | I144: 0.00 | J144: 0.00 | K144: 5.44 | L144: 0.34
B145: Итого за прием пищи: | D145: =SUM(D143:D144) -> 2.50 | E145: =SUM(E143:E144) -> 2.36 | F145: 35.08 | G145: 175.09 | H145: 0.03 | I145: 0.03 | J145: 4.00 | K145: 19.44 | L145: 3.14
B146: Обед
B147: САЛАТ ИЗ БЕЛОКОЧАННОЙ КАПУСТЫ | C147: 60 | D147: 0.85 | E147: 3.05 | F147: 5.41 | G147: 52.44 | H147: 0.02 | I147: 0.00 | J147: 19.47 | K147: 22.42 | L147: 0.31
B148: СУП КАРТОФЕЛЬНЫЙ С БОБОВЫМИ | C148: 200 | D148: 4.39 | E148: 4.22 | F148: 13.06 | G148: 107.80 | H148: 0.18 | I148: 0.06 | J148: 4.65 | K148: 30.46 | L148: 1.62
B149: ПЛОВ ИЗ МЯСА ПТИЦЫ | C149: 210 | D149: 22.26 | E149: 7.73 | F149: 35.69 | G149: 301.00 | H149: 0.08 | I149: 0.08 | J149: 1.01 | K149: 20.70 | L149: 1.87
B150: ХЛЕБ ПШЕНИЧНЫЙ | C150: 50 | D150: 3.95 | E150: 0.50 | F150: 24.15 | G150: 118.00 | H150: 0.08 | I150: 0.03 | J150: 0.00 | K150: 11.50 | L150: 1.00
B151: КОМПОТ ИЗ СМЕСИ СУХОФРУКТОВ | C151: 180 | D151: 0.32 | E151: 0.04 | F151: 21.38 | G151: 87.00 | H151: 0.01 | I151: 0.26 | J151: 1.55 | K151: 14.50 | L151: 0.27
B152: Итого за прием пищи: | D152: =SUM(D147:D151) -> 31.77 | E152: =SUM(E147:E151) -> 15.54 | F152: 99.69 | G152: 666.24 | H152: 0.37 | I152: 0.43 | J152: 26.68 | K152: 99.58 | L152: 5.07
B153: Уплотненный полдник
B154: РАГУ ОВОЩНОЕ С СОУСОМ | C154: 150/45 | D154: 41.49 | E154: 13.58 | F154: 16.63 | G154: 199.36 | H154: 0.09 | I154: 0.09 | J154: 8.29 | K154: 50.09 | L154: 0.96
B155: БИТОЧКИ КУРИНЫЕ | C155: 70 | D155: 10.62 | E155: 9.72 | F155: 6.92 | G155: 157.50 | H155: 0.06 | I155: 0.09 | J155: 0.39 | K155: 29.28 | L155: 0.93
B156: ХЛЕБ ПШЕНИЧНЫЙ | C156: 40 | D156: 3.16 | E156: 0.40 | F156: 19.32 | G156: 94.40 | H156: 0.07 | I156: 0.02 | J156: 0.00 | K156: 9.21 | L156: 0.80
B157: ЧАЙ С КУРАГОЙ | C157: 180/10/10 | D157: 0.12 | E157: 0.02 | F157: 10.20 | G157: 41.00 | H157: 0.00 | I157: 0.00 | J157: 2.83 | K157: 12.80 | L157: 0.32
B158: СВЕЖИЕ ФРУКТЫ | C158: 100 | D158: 0.40 | E158: 0.40 | F158: 9.80 | G158: 44.00 | H158: 0.02 | I158: 0.30 | J158: 10.00 | K158: 16.00 | L158: 2.20
B159: Итого за прием пищи: | D159: =SUM(D154:D157) -> 55.39 | E159: =SUM(E154:E157) -> 23.72 | F159: =SUM(F154:F157) -> 53.07 | G159: 492.26 | H159: 0.22 | I159: 0.20 | J159: 11.51 | K159: 101.38 | L159: 3.01
B160: Всего за день: | D160: =D141+D145+D152+D159 -> 101.56 | E160: =E141+E145+E152+E159 -> 55.03 | F160: 255.37 | G160: 1832.38 | H160: 0.78 | I160: 0.94 | J160: 43.12 | K160: 249.80 | L160: 13.01
B161: 7 день. ВТ
A162: № ТК | B162: Прием пищи, наименование блюда | C162: Масса порции | D162: Пищевые вещества | G162: Энергетическая ценность, ккал | H162: Витамины | K162: Минеральные вещества
D163: Белки, г | E163: Жиры, г | F163: Углеводы, г | H163: В1, мг | I163: В2, мг | J163: С, мг | K163: Са, мг | L163: Fе, мг
B164: Завтрак
B165: СУП МОЛОЧНЫЙ С МАКАРОННЫМИ ИЗДЕЛИЯМИ | C165: 200 | D165: 6.05 | E165: 5.60 | F165: 18.25 | G165: 147.60 | H165: 0.09 | I165: 0.22 | J165: 0.91 | K165: 161.62 | L165: 0.53
B166: БУТЕРБРОД С МАСЛОМ И СЫРОМ | C166: 25/5/10 | D166: 6.38 | E166: 11.25 | F166: 13.57 | G166: 184.90 | H166: 0.11 | I166: 0.09 | J166: 0.30 | K166: 231.20 | L166: 0.82
B167: КАКАО С МОЛОКОМ | C167: 180 | D167: 3.67 | E167: 3.19 | F167: 15.82 | G167: 107.00 | H167: 0.05 | I167: 0.17 | J167: 1.43 | K167: 137.00 | L167: 0.43
B168: Итого за прием пищи: | D168: =SUM(D165:D167) -> 16.10 | E168: =SUM(E165:E167) -> 20.04 | F168: 47.64 | G168: 439.50 | H168: 0.25 | I168: 0.48 | J168: 2.64 | K168: 529.82 | L168: 1.78
B169: II Завтрак
B170: КИСЛОМОЛОЧНЫЙ ПРОДУКТ | C170: 150 | D170: 4.35 | E170: 3.75 | F170: 6.30 | G170: 76.00 | H170: 0.03 | I170: 0.20 | J170: 0.45 | K170: 186.00 | L170: 15.00
B171: ПЕЧЕНЬЕ | C171: 20 | D171: 1.50 | E171: 2.36 | F171: 14.88 | G171: 89.76 | H171: 0.00 | I171: 0.00 | J171: 0.00 | K171: 5.44 | L171: 0.34
B172: Итого за прием пищи: | D172: =SUM(D170:D171) -> 5.85 | E172: =SUM(E170:E171) -> 6.11 | F172: 21.18 | G172: 165.76 | H172: 0.03 | I172: 0.20 | J172: 0.45 | K172: 191.44 | L172: 15.34
B173: Обед
B174: САЛАТ ВИТАМИННЫЙ | C174: 60 | D174: 0.50 | E174: 3.66 | F174: 3.16 | G174: 47.64 | H174: 0.03 | I174: 0.02 | J174: 5.27 | K174: 11.64 | L174: 0.63
B175: РАССОЛЬНИК | C175: 200 | D175: 1.74 | E175: 3.66 | F175: 6.50 | G175: 65.80 | H175: 0.06 | I175: 0.05 | J175: 4.04 | K175: 11.00 | L175: 0.60
B176: ПЮРЕ КАРТОФЕЛЬНОЕ | C176: 150 | D176: 3.06 | E176: 4.80 | F176: 20.43 | G176: 137.18 | H176: 0.14 | I176: 0.11 | J176: 18.15 | K176: 36.98 | L176: 1.09
B177: ПТИЦА В СОУСЕ В ТОМАТЕ | C177: 80 | D177: 7.60 | E177: 8.85 | F177: 1.77 | G177: 117.14 | H177: 0.02 | I177: 0.06 | J177: 0.30 | K177: 14.30 | L177: 0.66
B178: ХЛЕБ ПШЕНИЧНЫЙ | C178: 50 | D178: 3.95 | E178: 0.50 | F178: 24.15 | G178: 118.00 | H178: 0.08 | I178: 0.03 | J178: 0.00 | K178: 11.50 | L178: 1.00
B179: КОМПОТ ИЗ СМЕСИ СУХОФРУКТОВ | C179: 180 | D179: 0.32 | E179: 0.04 | F179: 21.38 | G179: 87.00 | H179: 0.01 | I179: 0.26 | J179: 1.55 | K179: 14.50 | L179: 0.27
B180: Итого за прием пищи: | D180: =SUM(D174:D179) -> 17.17 | E180: =SUM(E174:E179) -> 21.51 | F180: 77.39 | G180: 572.76 | H180: 0.34 | I180: 0.53 | J180: 29.31 | K180: 99.92 | L180: 4.25
B181: Уплотненный полдник
B182: КАША ПШЕНИЧНАЯ МОЛОЧНАЯ С МАСЛОМ | C182: 200/5 | D182: 8.64 | E182: 8.56 | F182: 38.71 | G182: 326.19 | H182: 0.10 | I182: 0.20 | J182: 0.90 | K182: 186.00 | L182: 0.70
B183: ЧАЙ С САХАРОМ | C183: 180/10 | D183: 0.06 | E183: 0.02 | F183: 9.99 | G183: 40.00 | H183: 0.00 | I183: 0.00 | J183: 0.03 | K183: 10.00 | L183: 0.28
B184: СВЕЖИЕ ФРУКТЫ | C184: 100 | D184: 0.40 | E184: 0.40 | F184: 9.80 | G184: 44.00 | H184: 0.02 | I184: 0.30 | J184: 10.00 | K184: 16.00 | L184: 2.20
B185: ОЛАДЬИ С ПОВИДЛОМ | C185: 60/5 | D185: 4.56 | E185: 4.06 | F185: 27.75 | G185: 166.00 | H185: 0.09 | I185: 0.08 | J185: 0.24 | K185: 51.10 | L185: 0.85
B186: Итого за прием пищи: | D186: =SUM(D182:D185) -> 13.66 | E186: =SUM(E182:E185) -> 13.04 | F186: 86.25 | G186: 576.19 | H186: 0.21 | I186: 0.58 | J186: 11.17 | K186: 263.10 | L186: 4.03
B187: Всего за день: | D187: =D168+D172+D180+D186 -> 52.78 | E187: =E168+E172+E180+E186 -> 60.70 | F187: 232.46 | G187: 1754.21 | H187: 0.83 | I187: 1.79 | J187: 43.57 | K187: 1084.28 | L187: 25.40
B188: 8 день. Ср
A189: № ТК | B189: Прием пищи, наименование блюда | C189: Масса порции | D189: Пищевые вещества | G189: Энергетическая ценность, ккал | H189: Витамины | K189: Минеральные вещества
D190: Белки, г | E190: Жиры, г | F190: Углеводы, г | H190: В1, мг | I190: В2, мг | J190: С, мг | K190: Са, мг | L190: Fе, мг
B191: Завтрак
B192: КАША ГЕРКУЛЕСОВАЯ МОЛОЧНАЯ С МАСЛОМ | C192: 200/5 | D192: 7.85 | E192: 9.96 | F192: 30.71 | G192: 303.71 | H192: 0.11 | I192: 0.20 | J192: 0.90 | K192: 191.00 | L192: 0.90
B193: БУТЕРБРОД С МАСЛОМ | C193: 40/5 | D193: 3.20 | E193: 4.03 | F193: 19.39 | G193: 127.40 | H193: 0.07 | I193: 0.08 | J193: 0.00 | K193: 10.40 | L193: 0.81
B194: ЧАЙ С МОЛОКОМ | C194: 180/10 | D194: 2.67 | E194: 2.34 | F194: 14.31 | G194: 89.00 | H194: 0.04 | I194: 0.14 | J194: 1.20 | K194: 113.90 | L194: 0.37
B195: Итого за прием пищи: | D195: =SUM(D192:D194) -> 13.72 | E195: =SUM(E192:E194) -> 16.33 | F195: 64.41 | G195: 520.11 | H195: 0.22 | I195: 0.42 | J195: 2.10 | K195: 315.30 | L195: 2.08
B196: II Завтрак
B197: СВЕЖИЕ ФРУКТЫ (ЯБЛОКО) | C197: 100 | D197: 0.40 | E197: 0.40 | F197: 9.80 | G197: 44.00 | H197: 0.02 | I197: 0.30 | J197: 10.00 | K197: 16.00 | L197: 2.20
B198: ПЕЧЕНЬЕ | C198: 20 | D198: 1.50 | E198: 2.36 | F198: 14.88 | G198: 89.76 | H198: 0.00 | I198: 0.00 | J198: 0.00 | K198: 5.44 | L198: 0.34
B199: Итого за прием пищи: | D199: =SUM(D197:D198) -> 1.90 | E199: =SUM(E197:E198) -> 2.76 | F199: 24.68 | G199: =SUM(G197:G198) -> 133.76 | H199: 0.02 | I199: 0.30 | J199: 10.00 | K199: 21.44 | L199: 2.54
B200: Обед
... 66 more rows
